Cogmind - Beta 13 *** ADVENTURER MODE // 2024.04.18 @ 17:50:53 Player: Knightshade Result: Destroyed by SN-F2D(R) with Subdweller Machine Gun Performance ------------- Evolutions (0) 0 Regions Visited (2) 400 Robots Destroyed (29) 145 Value Destroyed (736) 736 Prototype IDs (14) 280 Alien Tech Used (0) 0 Bonus (0) 0 TOTAL SCORE: 1561 Bonus ------- None Cogmind --------- Core Integrity 0/250 Matter 290/300 Energy 87/100 System Corruption 0% Temperature Cool (12) Movement Rolling (215) Ox9 Location -10/Subcaves Parts ------- > --- POWER (1) -------- (None) > --- PROPULSION (2) --- Wheel > --- UTILITY (2) ------ Huge Storage Unit Makeshift Light Armor Plating > --- WEAPON (2) ------- Subdweller Beam Cannon Battle Cannon > --- INVENTORY (25) --- Makeshift Power Source Spiked Treads Makeshift Flight Unit Medium Storage Unit Structural Scanner Scrap Shield Makeshift System Restoration Module Battle Rifle Battle Rifle Multitool Peak State ------------ > --- POWER ------------ Light Nuclear Core > --- PROPULSION ------- Wheel Wheel > --- UTILITY ---------- Scrap Shield > --- WEAPON ----------- Subdweller Laser Battle Rifle > --- INVENTORY -------- Huge Storage Unit Structural Scanner Light Cannon Multitool [Rating: 13] Favorites ----------- Power Ion Engine Engine Ion Engine Power Core Light Nuclear Core Propulsion Wheel Wheel Wheel Utility Huge Storage Unit Device Structural Scanner Storage Huge Storage Unit Protection Makeshift Light Armor Plating Weapon Battle Cannon Energy Gun Medium Laser Energy Cannon Subdweller Beam Cannon Ballistic Gun Battle Rifle Ballistic Cannon Battle Cannon Build | -11 -10 -10 ------- Run | Yrd Mat Sub Slots Evolved . | . . . Power . | . . . Propulsion . | . . . Utility . | . . . Weapon . | . . . Parts Attached 23 | 6 5 12 Power 3 | 1 1 1 Engine 2 | 1 . 1 Core 1 | . 1 . Reactor . | . . . Propulsion 4 | 2 1 1 Treads . | . . . Leg . | . . . Wheel 4 | 2 1 1 Hover . | . . . Flight . | . . . Utility 6 | 1 2 3 Device 1 | . 1 . Storage 3 | 1 1 1 Processor . | . . . Hackware . | . . . Protection 2 | . . 2 Artifact . | . . . Weapon 10 | 2 1 7 Energy Gun 2 | 1 . 1 Energy Cannon 3 | . . 3 Ballistic Gun 3 | 1 . 2 Ballistic Cannon 2 | . 1 1 Launcher . | . . . Special Weapon . | . . . Impact Weapon . | . . . Slashing Weapon . | . . . Piercing Weapon . | . . . Special Melee Weapon . | . . . Unidentified Prototypes . | . . . Parts Lost 5 | . 2 3 Power 2 | . . 2 Propulsion 2 | . 1 1 Utility . | . . . Weapon 1 | . 1 . Highest Loss Streak 2 | . 2 1 To Critical Strikes 1 | . . 1 Average Slot Usage (%) 86 | . 90 85 Engine 9 | . 5 11 Core 4 | . 8 2 Wheel 21 | . 27 18 Device 2 | . 5 1 Storage 12 | . 14 11 Protection 9 | . . 12 Energy Gun 4 | . 14 1 Energy Cannon 7 | . . 9 Ballistic Gun 4 | . 7 3 Ballistic Cannon 10 | . 6 11 Naked Turns . | . . . Heaviest Build 100 | 14 91 100 Greatest Support 26 | 26 26 20 Greatest Overweight (x) 9 | . 8 9 Average Overweight (x) 4 | . 3 5 Largest Inventory Capacity 25 | 8 25 25 Average Capacity 21 | 7 24 21 Most Carried 11 | 2 7 11 Average Carried 6 | . 4 7 Final Capacity 25 | 8 25 25 Final Carried 11 | . 6 11 Class Distribution -------------------- 100% | Mutant Dominant Class ---------------- Mutant | -10/Materials Mutant | -10/Subcaves Resources | -11 -10 -10 ----------- Run | Yrd Mat Sub Matter Collected 792 | 222 178 392 Remotely . | . . . Salvage Created 901 | . 381 520 Parts 54 | . 22 32 Haulers Intercepted 2 | . 2 . Recyclers Shooed . | . . . Parts Field Recycled . | . . . Retrieved Matter . | . . . Parts Self-Destructed 11 | . . 11 Prevented . | . . . Kills | -11 -10 -10 ------- Run | Yrd Mat Sub Combat Hostiles Destroyed 23 | . 10 13 Guns 14 | . 10 4 Cannons 9 | . . 9 Classes Destroyed 7 | . 4 3 Hauler 2 | . 2 . Turret 2 | . . 2 Watcher 2 | . 2 . Swarmer 9 | . 6 3 Grunt 6 | . 4 2 Artisan 1 | . . 1 Subdweller 8 | . . 8 Best Kill Streak 5 | . 5 3 Combat Bots Only 5 | . 5 3 Max Kills in Single Turn 1 | . 1 1 Gunslinging . | . . . Exploded . | . . . Melee . | . . . Uniques/NPCs Destroyed . | . . . Combat | -11 -10 -10 -------- Run | Yrd Mat Sub Hostile Shots Fired 139 | . 65 74 Missed 40 | . 11 29 Damage Taken 1054 | . 402 652 Core 252 | . 125 127 Absorbed by Shields . | . . . Ignored by Resistances 317 | . 127 190 Core Remaining (%) 100 | 100 . . Volleys Fired 110 | . 39 71 Largest 2 | . 2 2 Hottest 119 | . 70 119 Shots Fired 197 | . 72 125 Gun 111 | . 72 39 Cannon 86 | . . 86 Launcher . | . . . Special . | . . . Kinetic 105 | . 33 72 Thermal 92 | . 39 53 Explosive . | . . . Electromagnetic . | . . . Robot Hit Streak 27 | . 14 27 Robot Miss Streak 3 | . 3 1 Penetration Max . | . . . Secondary Targets 1 | . 1 . Max Gunslinging Chain 1 | . 1 . Shots Hit Robots 119 | . 52 67 Core Hits 45 | . 21 24 Critical Kills . | . . . Critical Parts Destroyed 1 | . . 1 Critical Strikes 5 | . 3 2 Burn 3 | . 3 . Destroy 1 | . . 1 Blast 1 | . . 1 Melee Attacks . | . . . Impact . | . . . Slashing . | . . . Piercing . | . . . Sneak Attacks . | . . . Combat Hostiles . | . . . Follow-up Attacks . | . . . Damage Inflicted 1916 | . 672 1244 Guns 1083 | . 672 411 Cannons 833 | . . 833 Explosions . | . . . Melee . | . . . Ramming . | . . . Kinetic 971 | . 306 665 Thermal 945 | . 366 579 Explosive . | . . . Electromagnetic . | . . . Impact . | . . . Slashing . | . . . Piercing . | . . . Highest Corruption . | . . . Average Corruption . | . . . Corruption Purged . | . . . Corruption Blocked . | . . . Overload Shots . | . . . Overflow Damage 15 | . . 15 Projectiles 15 | . . 15 Explosions . | . . . Melee . | . . . Knockbacks 4 | . . 4 Impact . | . . . Kinetic 4 | . . 4 Secondary . | . . . Self-Inflicted Damage . | . . . Shots . | . . . Rammed . | . . . Targets Rammed . | . . . Kicked . | . . . Crushed . | . . . Highest Temperature 165 | . 165 75 Average Temperature 36 | . 55 18 Received Heat Transfer 246 | . 99 147 Siege Activations . | . . . Robots Corrupted . | . . . Combat Hostiles . | . . . Parts Fried . | . . . Impact Corruptions . | . . . Robots Melted . | . . . Combat Hostiles . | . . . Parts Melted 4 | . 3 1 Heat Transferred 2061 | . 1295 766 Parts Sabotaged . | . . . Parts Stolen . | . . . Parts Stripped . | . . . Power Chain Reactions . | . . . Alert | -11 -10 -10 ------- Run | Yrd Mat Sub Peak Influence 220 | . 220 . Initial . | . . . Average 79 | . 85 . Maximum Alert Level 1 | . 1 . Low Security (%) 98 | 100 98 . Level 1 1 | . 1 . Level 2 . | . . . Level 3 . | . . . Level 4 . | . . . Level 5 . | . . . High Security . | . . . Max Security . | . . . Squads Dispatched 2 | . 2 . Investigation 2 | . 2 . Extermination . | . . . Reinforcement . | . . . Assault . | . . . Garrison . | . . . Intercept . | . . . Searches Triggered . | . . . Construction Impeded . | . . . Haulers Reinforced . | . . . Active Scanning Responses . | . . . Cargo Convoy Interrupts . | . . . Stealth | -11 -10 -10 --------- Run | Yrd Mat Sub Distress Signals 2 | . 2 . Communications Jammed . | . . . Distress Signals . | . . . Times Spotted 63 | . 18 45 Peak Tracking Total 7 | . 7 6 Tactical Retreats 4 | . . 4 Traps | -11 -10 -10 ------- Run | Yrd Mat Sub Traps Triggered 2 | . 1 1 Indirectly . | . . . Trap Hack Attempts . | . . . Triggered . | . . . Disarmed . | . . . Reprogrammed . | . . . Reused . | . . . Traps Extracted . | . . . Installed . | . . . Triggered 1 | . . 1 Machines | -11 -10 -10 ---------- Run | Yrd Mat Sub Machines Disabled 1 | . . 1 Max in Single Turn 1 | . . 1 Machines Repaired . | . . . Machines Dismantled . | . . . Machines Sabotaged . | . . . Overloaded Fab Kills . | . . . Hacking | -11 -10 -10 --------- Run | Yrd Mat Sub Machines Accessed 10 | . 9 1 Terminals 7 | . 7 . Fabricators . | . . . Repair Stations . | . . . Recycling Units 2 | . 2 . Scanalyzers . | . . . Garrison Access . | . . . Total Hacks 31 | . 30 1 Successful 18 | . 17 1 Failed 13 | . 13 . Catastrophic 2 | . 2 . Database Lockouts . | . . . Manual 19 | . 19 . Terminals 22 | . 22 . Fabricators . | . . . Repair Stations . | . . . Recycling Units 8 | . 8 . Scanalyzers . | . . . Garrison Access . | . . . Terminal Hacks 9 | . 8 1 Prototype ID Bank 2 | . 2 . Terminal Index 1 | . 1 . Alert Level 1 | . 1 . Locate Traps 1 | . 1 . Hauler Manifests 1 | . 1 . Registered Components 1 | . 1 . Zone Layout 1 | . 1 . Derelict Proto ID Bank 1 | . . 1 Fabricator Hacks . | . . . Repair Station Hacks . | . . . Recycling Unit Hacks 1 | . 1 . Retrieve Components 1 | . 1 . Scanalyzer . | . . . Garrison Access Hacks . | . . . Unauthorized Hacks 8 | . 8 . Terminals 5 | . 5 . Botnet 5 | . 5 . Fabricators . | . . . Repair Stations . | . . . Recycling Units 3 | . 3 . Reject 1 | . 1 . Tunnel 2 | . 2 . Scanalyzers . | . . . Garrison Access . | . . . Data Cores Recovered . | . . . Used . | . . . Hacking Detections 7 | . 7 . Full Trace Events 1 | . 1 . Feedback Events . | . . . Feedback Blocked . | . . . Robot Schematics Acquired . | . . . Robots Built . | . . . Authchips . | . . . Time . | . . . Total Robot Build Rating . | . . . Part Schematics Acquired . | . . . Parts Built . | . . . Authchips . | . . . Time . | . . . Total Part Build Rating . | . . . Parts Repaired . | . . . Time . | . . . Parts Recycled . | . . . Recycled Matter . | . . . Retrieved Matter . | . . . Retrieved Components 9 | . 9 . Parts Scanalyzed . | . . . Part Schematics Acquired . | . . . Parts Damaged . | . . . Bothacking | -11 -10 -10 ------------ Run | Yrd Mat Sub Used RIF Installer . | . . . Robots Hacked . | . . . Non-combat . | . . . Combat . | . . . Robot Hacks Applied . | . . . Relay Couplers Released . | . . . Fabnet Peak Effective % . | . . . Robots Rewired . | . . . Allies Hacked . | . . . Hacks Repelled . | . . . Allies | -11 -10 -10 -------- Run | Yrd Mat Sub Total Allies . | . . . Largest Group . | . . . Highest-Rated Group . | . . . Highest-Rated Ally . | . . . Total Orders . | . . . Ally Attacks . | . . . Total Damage . | . . . Kills . | . . . Allies Corrupted . | . . . Allies Melted . | . . . Intel | -11 -10 -10 ------- Run | Yrd Mat Sub Robot Analysis Total . | . . . Derelict Logs Recovered 2 | . . 2 Drone Launches . | . . . Drone Recoveries . | . . . Exploration | -11 -10 -10 ------------- Run | Yrd Mat Sub Turns Passed 4029 | 77 1045 2907 Spaces Moved 2264 | 64 659 1541 Core 8 | 8 . . Treads . | . . . Legs . | . . . Wheels 2256 | 56 659 1541 Hover . | . . . Flight . | . . . Fastest Speed 50 | 50 90 80 Average Speed 154 | 85 136 164 Slowest Speed 215 | 90 200 215 Overloaded Moves . | . . . Propulsion Burnouts . | . . . Robots Hopped . | . . . Cave-ins Triggered . | . . . Exploration Rate (%) 59 | 5 98 76 Regions Visited 2 Branch Regions 1 Pre-discovered Areas 4 | . 2 2 Known Exits Taken . | . . . Unknown Exits Taken 2 | 1 1 . Scrap Searched 9 | . . 9 Spaces Dug . | . . . Terrain Destroyed 5 | . . 5 Melee . | . . . Projectile 5 | . . 5 AOE . | . . . Terrain Rammed . | . . . Walls Destroyed . | . . . Machines Disabled . | . . . Actions | -11 -10 -10 --------- Run | Yrd Mat Sub Total 2609 | 86 731 1792 Wait 158 | 11 16 131 Move 2262 | 63 658 1541 Hop . | . . . Pick Up 35 | 6 11 18 Fast Attach . | . . . Attach 15 | 6 3 6 Detach 2 | . . 2 Swap 8 | . 2 6 Drop 15 | . 2 13 Fire 110 | . 39 71 Melee . | . . . Ram . | . . . Kick . | . . . Crush . | . . . Escape Stasis . | . . . Rewire . | . . . Trap . | . . . Miscellaneous 4 | . . 4 Route ------- -11/Scrapyard -10/Materials (discovered 5 exits: [*Mat x3] / [*Min] / *Sub) -10/Subcaves (discovered 3 exits: [*Mat x2] / [*Rec]) History --------- Turn | Location | Event 10 | -11/Scrapyard | Discovered new exit (range 16) 78 | -11/Scrapyard | Entered Materials 250 | -10/Materials | Discovered new exit (range 15) 298 | -10/Materials | Discovered new exit (range 16) 305 | -10/Materials | Build established: Mutant 512 | -10/Materials | Discovered new exit (range 15) 681 | -10/Materials | Discovered new exit (range 16) 902 | -10/Materials | Discovered new exit (range 9) 1123 | -10/Materials | Entered Subcaves 1275 | -10/Subcaves | Discovered new exit (range 14) 1362 | -10/Subcaves | A swath of the cavern ceiling suddenly collapsed 1587 | -10/Subcaves | Learned location of Zion (-6) 1611 | -10/Subcaves | Core integrity fell below 50% 1721 | -10/Subcaves | Discovered new exit (range 12) 1847 | -10/Subcaves | Shifting Twisted Machinery released Sub. Optics 2020 | -10/Subcaves | Visited 4L-MR0's lab 2096 | -10/Subcaves | Core integrity fell below 20% 2103 | -10/Subcaves | A swath of the cavern ceiling suddenly collapsed 3294 | -10/Subcaves | Shifting Twisted Machinery released Sub. Beam Cannon 3441 | -10/Subcaves | Shifting Twisted Machinery released Mak. Light Armor Plating 3447 | -10/Subcaves | Shifting Twisted Machinery released Shrapnel Trap 3838 | -10/Subcaves | Discovered new exit (range 5) 4030 | -10/Subcaves | Destroyed by SN-F2D(R) with Subdweller Machine Gun Last Messages --------------- 03232_ Acquired 10 matter. Sub. Beam Cannon falls loose from the Twisted Machinery. 03309_ Acquired Sub. Beam Cannon. Mak. Light Armor Plating falls loose from the Twisted Machinery. Shrapnel Trap falls loose from the Twisted Machinery. 03838_ EXIT=FOUND 03867_ F2-7PJ(R) destroyed. 03880_ Acquired 23 matter. 03889_ Acquired 3 matter. 03891_ Acquired 5 matter. 03957_ ZM-ZJO(R) destroyed. 03967_ Acquired 39 matter. 04012_ Acquired Mak. Power Source. 04014_ W5-DON(u) tweaks Twisted Machinery. 04025_ SN-F2D(R) knocked back. 04026_ Critical hit (Destroy). 04026_ Ion Engine destroyed. Map ----- +----------------------------------------------------+ | ?????????????????????????????????????????????????? | | ?????????????????????????????????????????????????? | | ?????????????????????????????????????????????????? | | ?????????????????????????????????????????????????? | | ?????????????????????????????????????????????????? | | ?????????????????????????????????????????????????? | | ?????????????????????????????????????????????????? | | ?????????????????????????????????????????????????? | | ?????????????????????????????????????????????????? | | ?????????????????????????????????????????????????? | | ?????????????????????????????????????????????????? | | ?????????????????????????????????????????????????? | | ??????????????????? #????? ??????????????????????? | | ???????????????????# #???? ?????????????????????? | | ???????????????????# "####""?####????????????????? | | ???????????????????# ?? #????????????????? | | ???????????????????? ? ##???????????????? | | ???????????????????? ?? ####????????????? | | ????????????????????? % ?# #????????????? | | ?????????????????????#R ## ????????????? | | ?????????????????????# # ???????????? | | ?????????????????????#; ???????????? | | ?????????????????????# ????????????? | | ?????????????????????# ?????????????????? | | ?????????????????????# #??????????????????????? | | ????????????????????## % @#??????????????????????? | | ??????????????#####?# ##??????????????????????? | | ??????????????# ##%/ ##???????????????????????? | | ??????????????# #????????????????????????? | | ??????????????## #????????????????????????? | | ???????????????# ##????????????????????????? | | ???????????????#### ##?????????????????????????? | | ?#### ????????????# #??????????????????????????? | | ? ????????#### #??????????????????????????? | | ?????### #??????????????????????????? | | ##??## #??????????????????????????? | | # ### #??????#???????????????????? | | ?????# #????? #???????????????????? | | ?????## #????? ######??????????????? | | ??????## "" ##???? # # ?????????????? | | ???????# "" #???? ??????????????? | | ???????# "" " #???? ????????????????? | | ???????# """" #???# ?????????????????? | | ???????# """""!###### ### ??????????????????? | | ???????###""""%!#?###? #???????????????????? | | ?????????#"""&[&### #?# ##??????????????????? | | ????###?##"" ##?# #??????????????????? | | ???## ### "" ### #??????????????????? | | #### ## ##"" #???????????????????? | | # #?## " ##?#####?????????????? | +----------------------------------------------------+ Best States ------------- Heat Dissipation 25 Energy Generation 14 Energy Capacity 250 Matter Stores 300 Matter Capacity 300 Sight Range 16 Terrain Scan Density 10 Armor Coverage 800 Resistance: KI 20 Resistance: TH 20 Resistance: EX 20 Resistance: EM 20 Resistance: I 20 Resistance: S 20 Resistance: P 20 Evasion (%) 42 Offensive Hacking 10 Item Schematics ----------------- None Robot Schematics ------------------ None Fabricated ------------ Nothing Alien Tech Used ----------------- None Achievements -------------- None Challenges ------------ None Game ------ Seed DispersionHelicalMultirail Manual? 0 Play Time 00:17:40 Cumulative 56.5 hours Start 2024.04.18 @ 17:30:06 End 2024.04.18 @ 17:50:53 Sessions 1 Manual Loads 0 Difficulty Adventurer Special Mode None Game No. 39 Rogue 0 Adventurer 39 Explorer 0 Win Type - Total 0 Types 0/0/0/0/0/0/0/0/0 Lore% 30 Gallery% 39 Achievement% 33 Wizard Run 0 Options --------- Layout 1 ASCII 0 Keyboard 0 Movement Mouse Keybinds 0 Fullscreen 1 Font 24/Smallcaps Map View 50x35 Zoom Use 0% Tactical HUD 1 Map Filters NONE Filters NONE Steam 1 RUN: 71eca47d-bd81-47cb-89be-6b350dcd9ba1